bitfinex-derivatives/quotes_ETHF0:USTF0_20250210
["timestamp","ask_amount","ask_price","bid_price","bid_amount"]
[1739225920318,0.00563296,2663.3,2662.8,3.81963296]
[1739225920521,0.00563296,2663.3,2662.9,0.3948629]
[1739225920722,0.00563296,2663.3,2662.8,3.81963296]
[1739225920915,0.00563296,2663.3,2662.9,0.39486201]
[1739225921117,0.00563296,2663.3,2663.0,0.3949595]
[1739225921314,0.00563296,2663.3,2663.1,0.5845]
[1739225921513,0.00563296,2663.3,2663.2,1.1601]
[1739225926330,0.00563296,2663.3,2663.2,0.5768]
[1739225926524,0.00563296,2663.3,2663.2,1.1599]
[1739225928232,0.00563296,2663.3,2663.0,3.2078]
[1739225928425,0.00563296,2663.3,2663.1,2.17616846]
[1739225928627,0.00563296,2663.3,2663.1,1.7805]
[1739225929334,0.00563296,2663.3,2663.2,0.39581673]
[1739225930125,0.00563296,2663.3,2663.1,1.7805]
[1739225930325,0.00563296,2663.3,2663.2,0.39598722]
[1739225933333,0.00563296,2663.3,2663.2,0.39625132]
[1739225935431,0.00563296,2663.3,2663.2,0.39633503]
[1739225936129,0.00563296,2663.3,2663.1,4.9883]
[1739225937026,0.00563296,2663.3,2663.2,0.3963791]
[1739225937832,0.00563296,2663.3,2663.1,4.9883]
[1739225938725,0.00563296,2663.3,2663.2,0.39646764]
[1739225939840,0.00563296,2663.3,2663.2,0.39653017]
[1739225941436,0.00563296,2663.3,2663.2,0.39673364]
[1739225941838,0.00563296,2663.3,2663.2,0.39671909]
[1739225943236,0.00563296,2663.3,2663.2,0.39672955]
[1739225944433,45.35376,2665.8,2663.2,6.39672955]
[1739225944434,0.5743,2664.3,2663.2,6.39672955]
[1739225944730,3.2078,2664.4,2663.6,3.2078]
[1739225944929,3.2078,2664.4,2663.7,3.74582955]
[1739225944930,0.5634,2664.3,2663.7,3.74582955]
[1739225945137,0.5634,2664.3,2663.8,0.39672955]
[1739225945436,0.5634,2664.3,2663.9,0.39651746]
[1739225945642,0.56903296,2664.3,2663.8,0.00563296]
[1739225945940,0.56903296,2664.3,2663.9,0.39623836]
[1739225946139,0.56903296,2664.3,2663.8,0.00563296]
[1739225946342,0.56903296,2664.3,2663.9,0.39622337]
[1739225946542,0.56903296,2664.3,2663.8,0.00563296]
[1739225946838,0.56903296,2664.3,2663.9,0.39605823]
[1739225947039,0.56903296,2664.3,2663.8,0.00563296]
[1739225949734,3.2078,2664.1,2663.8,0.00563296]
[1739225949934,0.5752,2664.0,2663.8,0.00563296]
[1739225950142,0.5687,2663.9,2663.8,0.00563296]
[1739225950343,1.1658,2663.9,2663.8,0.00563296]
[1739225954442,0.5971,2663.9,2663.8,0.00563296]
[1739225959250,0.5971,2663.9,2663.4,0.5807]
[1739225959251,0.5971,2663.9,2663.4,0.556]
[1739225959441,3.2078,2663.7,2663.2,2.1717]
[1739225959642,0.6068,2663.6,2663.3,0.39599453]
[1739225959846,0.5741,2663.5,2663.2,2.1717]
[1739225960048,1.1319,2663.5,2663.3,0.39599555]
[1739225960347,1.1319,2663.5,2663.2,2.1717]
[1739225961453,1.1319,2663.5,2663.2,0.5617]
[1739225966756,1.1319,2663.5,2663.1,0.56163296]
[1739225966957,3.2078,2663.3,2663.1,0.00563296]
[1739225967356,3.95865,2663.3,2663.1,0.00563296]
[1739225968660,3.2078,2663.3,2663.1,0.00563296]
[1739225969364,3.95863,2663.3,2663.1,0.00563296]
[1739225969764,3.95863,2663.3,2662.5,0.5974]
[1739225969765,0.7509,2663.1,2662.5,0.5974]
[1739225969963,5.11233,2663.0,2662.5,0.5526]
[1739225970261,3.2078,2662.6,2662.5,0.5526]
[1739225971358,3.2078,2662.6,2662.3,0.00563296]
[1739225971559,0.5883,2662.5,2662.3,0.00563296]
[1739225975566,3.2078,2662.6,2662.3,0.00563296]
[1739225977867,0.85167643,2662.7,2662.3,0.00563296]
[1739225978065,3.2078,2662.6,2662.3,0.00563296]
[1739225981163,0.5553,2662.7,2662.3,0.00563296]
[1739225981470,0.00563296,2662.8,2662.3,0.00563296]
[1739225981867,0.00563296,2662.8,2662.6,3.2078]
[1739225982066,3.2078,2663.8,2662.6,3.2078]
[1739225982267,3.2078,2663.8,2662.9,3.2078]
[1739225983066,1.7524,2663.7,2662.9,3.2078]
[1739225983369,3.2078,2663.5,2662.9,3.2078]
[1739225985169,3.2078,2663.5,2663.0,0.5986]
[1739225985470,3.2078,2663.5,2663.1,0.5768]
[1739225986170,3.2078,2663.5,2663.2,0.5897]
[1739225986565,0.00563296,2663.6,2663.2,0.5897]
[1739225987273,3.2078,2663.5,2663.2,0.5897]
[1739225992479,3.2078,2663.5,2663.0,0.5986]
[1739225993383,3.95858,2663.5,2663.0,0.5986]
[1739225995781,3.2078,2663.5,2663.0,0.5986]
[1739225997474,0.29985563,2663.6,2663.0,0.5986]
[1739225997682,3.2078,2663.5,2663.0,0.5986]
[1739226002581,3.2078,2663.5,2663.1,0.39537165]
[1739226002780,3.2078,2663.5,2663.0,0.5986]
[1739226003086,3.2078,2663.5,2663.1,0.39536598]
[1739226003287,3.2078,2663.5,2663.0,0.5986]
[1739226003583,3.2078,2663.5,2663.1,0.39537881]
[1739226003784,3.2078,2663.5,2663.0,0.5986]
[1739226004085,3.2078,2663.5,2663.1,0.39538022]
[1739226004389,3.2078,2663.5,2663.0,0.5986]
[1739226004591,3.2078,2663.5,2663.1,0.39541637]
[1739226004885,3.2078,2663.5,2663.0,0.5986]
[1739226005079,3.2078,2663.5,2663.1,0.39541523]
[1739226005279,3.2078,2663.5,2663.2,0.6084]
[1739226005582,3.2078,2663.5,2663.3,0.5669]
[1739226010476,0.00563296,2663.6,2663.3,0.5669]
[1739226013186,0.00563296,2663.6,2663.4,0.39629893]
[1739226013385,0.00563296,2663.6,2663.3,0.5669]
[1739226013585,0.00563296,2663.6,2663.4,0.39627396]
[1739226013786,0.00563296,2663.6,2663.3,0.5669]
[1739226018489,0.00563296,2663.6,2663.4,0.39626254]
[1739226018688,0.00563296,2663.6,2663.3,0.5669]
[1739226018890,0.00563296,2663.6,2663.4,0.39625803]
[1739226019089,0.00563296,2663.6,2663.3,0.5669]
[1739226019297,0.00563296,2663.6,2663.4,0.39624775]
[1739226019494,0.00563296,2663.6,2663.3,0.5669]
[1739226019690,0.00563296,2663.6,2663.4,0.39622526]
[1739226019887,0.00563296,2663.6,2663.3,0.5669]
[1739226020087,0.00563296,2663.6,2663.4,0.39621669]
[1739226020290,0.00563296,2663.6,2663.5,0.5568]
[1739226026200,0.00563296,2663.6,2663.5,0.95323853]
[1739226027297,0.00563296,2663.6,2663.5,0.95323588]
[1739226029395,0.00563296,2663.6,2663.5,0.95328594]
[1739226033493,0.00563296,2663.6,2663.5,0.5568]
[1739226033695,0.00563296,2663.6,2663.5,0.95338241]
[1739226035598,0.00563296,2663.6,2663.5,0.95336922]
[1739226037704,0.00563296,2663.6,2663.5,0.95336608]
[1739226040007,0.00563296,2663.6,2663.5,0.95339055]
[1739226041910,0.00563296,2663.6,2663.5,0.95340734]
[1739226044110,0.00563296,2663.6,2663.5,0.95340105]
[1739226044604,0.00563296,2663.6,2663.5,0.95341073]
[1739226046207,0.00563296,2663.6,2663.5,0.95344497]
[1739226050513,0.00563296,2663.6,2663.5,0.95356145]
[1739226052612,0.00563296,2663.6,2663.5,0.95356406]
[1739226054511,0.00563296,2663.6,2663.5,0.5568]
[1739226054713,0.00563296,2663.6,2663.5,1.53155529]
[1739226056614,0.00563296,2663.6,2663.5,1.53156904]
[1739226058717,0.00563296,2663.6,2663.5,1.53153698]
[1739226064423,0.00563296,2663.6,2663.5,1.53136222]
[1739226069429,0.00563296,2663.6,2663.5,1.53104441]
[1739226070720,0.00563296,2663.6,2663.5,1.53098838]
[1739226072727,0.00563296,2663.6,2663.5,1.53087409]
[1739226073327,0.00563296,2663.6,2663.5,4.73867409]
[1739226073629,0.00563296,2663.6,2663.5,1.53087409]
[1739226075229,0.00563296,2663.6,2663.5,0.39607409]
[1739226077132,0.60063296,2663.6,2663.5,0.39607409]
[1739226077429,1.19753296,2663.6,2663.5,0.39607409]
[1739226079038,1.19753296,2663.6,2663.1,3.2078]
[1739226079234,1.19753296,2663.6,2663.2,0.39622797]
[1739226079433,1.19753296,2663.6,2663.1,3.2078]
[1739226079631,1.19753296,2663.6,2663.2,0.39618635]
[1739226079832,1.19753296,2663.6,2663.1,3.2078]
[1739226080036,1.19753296,2663.6,2663.2,0.39618371]
[1739226080234,1.19753296,2663.6,2663.1,3.2078]
[1739226080434,1.19753296,2663.6,2663.2,0.39613468]
[1739226080637,1.19753296,2663.6,2663.1,3.2078]
[1739226080837,1.19753296,2663.6,2663.2,0.39613708]
[1739226081026,1.19753296,2663.6,2663.1,3.2078]
[1739226081231,1.19753296,2663.6,2663.2,0.39614525]
[1739226081429,1.19753296,2663.6,2663.1,3.2078]
[1739226081637,1.19753296,2663.6,2663.2,0.3960672]
[1739226081934,1.19753296,2663.6,2663.1,3.2078]
[1739226082132,1.19753296,2663.6,2663.2,0.39607503]
[1739226082328,1.19753296,2663.6,2663.1,3.2078]
[1739226082528,1.19753296,2663.6,2663.2,0.39601106]
[1739226082736,1.19753296,2663.6,2663.1,3.2078]
[1739226082937,3.2078,2663.5,2663.1,3.2078]
[1739226083140,3.2078,2663.2,2662.8,0.5925]
[1739226083336,1.6805,2663.1,2662.6,5.4036]
[1739226083636,1.6805,2663.1,2662.7,0.39594356]
[1739226083938,1.6805,2663.1,2662.8,0.39594356]
[1739226084128,1.6805,2663.1,2662.6,4.3716]
[1739226084332,1.6805,2663.1,2662.7,0.39578079]
[1739226084637,1.6805,2663.1,2662.8,0.39578079]
[1739226084844,1.6805,2663.1,2662.6,3.2078]
[1739226085136,1.6805,2663.1,2662.5,2.92644604]
[1739226085327,1.6805,2663.1,2662.4,1.1492]
[1739226085532,1.6805,2663.1,2662.5,0.39561268]
[1739226085732,1.6805,2663.1,2662.4,1.1492]
[1739226085933,1.6805,2663.1,2662.5,0.39561219]
[1739226086136,1.6805,2663.1,2662.4,0.5917]
[1739226087642,3.2078,2662.8,2662.4,0.5917]
[1739226087844,0.5983,2662.7,2662.4,0.5917]
[1739226088143,1.1849,2662.6,2662.4,0.5917]
[1739226088736,1.1849,2662.6,2662.3,0.00563296]
[1739226097545,0.75108,2662.4,2662.3,0.00563296]
[1739226098149,6.0,2662.4,2661.6,1.7483]
[1739226098449,3.2078,2662.1,2661.6,1.1782]
[1739226098644,1.1707,2662.0,2661.6,1.1782]
[1739226098842,1.1707,2662.0,2661.5,3.2078]
[1739226099146,0.5802,2661.9,2661.4,0.5904]
[1739226099348,0.5802,2661.9,2661.5,0.00563296]
[1739226100447,3.2078,2661.7,2661.5,0.00563296]
[1739226109559,0.87445441,2661.9,2661.5,0.00563296]
[1739226111067,0.5802,2661.9,2661.5,0.00563296]
[1739226111265,3.77713296,2662.0,2661.5,0.00563296]
[1739226112168,4.08376201,2662.0,2661.5,0.00563296]
[1739226112366,3.21343296,2662.0,2661.5,0.00563296]
[1739226113255,3.21343296,2662.0,2661.5,3.21343296]
[1739226113461,3.21343296,2662.0,2661.6,1.7518]
[1739226114564,0.00563296,2662.0,2661.6,1.7518]
[1739226114868,0.00563296,2662.0,2661.8,3.2078]
[1739226117465,0.00563296,2662.0,2661.9,0.39493023]
[1739226117665,0.00563296,2662.0,2661.8,3.2078]
[1739226118269,0.00563296,2662.0,2661.9,0.39500942]
[1739226118660,0.00563296,2662.0,2661.8,3.2078]
[1739226118870,0.00563296,2662.0,2661.9,0.39501161]
[1739226120573,1.1694,2662.7,2661.9,0.39501161]
[1739226120772,1.1694,2662.7,2662.1,3.2078]
[1739226120971,1.1694,2662.7,2662.2,1.182]
[1739226121373,3.2078,2662.9,2662.2,1.182]
[1739226121873,0.00563296,2662.8,2662.2,1.182]
[1739226122070,0.00563296,2662.8,2662.2,2.792]
[1739226123775,0.00563296,2662.8,2662.3,0.5982]
[1739226129876,0.00563296,2662.8,2662.4,3.2078]
[1739226130883,0.00563296,2662.8,2662.5,0.39467095]
[1739226131076,0.00563296,2662.8,2662.4,3.2078]
[1739226131885,0.00563296,2662.8,2662.7,3.2078]
[1739226132779,0.00563296,2662.8,2662.7,3.60227594]
[1739226134374,0.00563296,2662.8,2662.7,3.2078]
[1739226135481,0.00563296,2662.8,2662.7,3.60205164]
[1739226136185,0.00563296,2662.8,2662.7,5.35635164]
[1739226138581,0.00563296,2662.8,2662.7,11.35635164]
[1739226138890,0.5539,2663.6,2662.7,11.35635164]
[1739226139083,0.5539,2663.6,2663.3,3.2078]
[1739226139578,0.5539,2663.6,2663.4,1.138]
[1739226140586,0.5539,2663.6,2663.4,1.7312]
[1739226142581,0.00563296,2663.8,2663.4,1.7312]
[1739226142790,0.61373296,2663.8,2663.4,1.7312]
[1739226142989,0.61373296,2663.8,2663.4,3.3402]
[1739226153601,0.00563296,2663.8,2663.6,3.2078]
[1739226154004,0.00563296,2663.8,2663.6,44.0078]
[1739226154199,0.00563296,2663.8,2663.7,0.39506186]
[1739226154500,0.00563296,2663.8,2663.6,3.2078]
[1739226155295,0.00563296,2663.8,2663.7,0.39508454]
[1739226155890,0.00563296,2663.8,2663.7,0.39508008]
[1739226157001,0.5611,2664.3,2663.7,6.39508008]
[1739226157203,0.5592,2664.5,2664.1,3.2078]
[1739226157499,0.5592,2664.5,2664.2,3.73757387]
[1739226157706,0.5592,2664.5,2664.2,3.3425]
[1739226159400,0.00563296,2664.6,2664.3,0.39502565]
[1739226159598,0.00563296,2664.6,2664.4,3.60282565]
[1739226159804,0.00563296,2664.6,2664.5,0.39499984]
[1739226159995,0.00563296,2664.6,2664.5,0.39500039]
[1739226164109,0.00563296,2664.6,2664.5,6.39500039]
[1739226166811,0.00563296,2664.6,2664.5,7.14549039]
[1739226167110,0.00563296,2664.6,2664.5,6.39500039]
[1739226169506,0.00563296,2664.6,2664.5,11.92181712]
[1739226170305,0.00563296,2664.6,2664.5,11.92053337]
[1739226170618,0.00563296,2664.6,2664.5,52.72053337]
[1739226170805,0.00563296,2664.6,2664.5,52.72052878]
[1739226171213,0.00563296,2664.6,2664.5,51.97003878]
[1739226171810,0.00563296,2664.6,2664.5,52.72052878]
[1739226172406,0.00563296,2664.6,2664.5,51.96996654]
[1739226172713,0.00563296,2664.6,2664.5,45.96996654]
[1739226173211,0.00563296,2664.6,2664.5,51.96996654]
[1739226174407,0.00563296,2664.6,2664.5,54.49132673]
[1739226174711,0.00563296,2664.6,2664.5,54.88494575]
[1739226175105,0.00563296,2664.6,2664.5,48.88494575]
[1739226175316,0.00563296,2664.6,2664.5,4.91561902]
[1739226175814,0.00563296,2664.6,2664.5,45.71561902]
[1739226176512,0.00563296,2664.6,2664.5,45.71569434]
[1739226180211,0.00563296,2664.6,2664.5,42.80069434]
[1739226180617,0.00563296,2664.6,2664.5,41.19408753]
[1739226180805,0.00563296,2664.6,2664.5,2.00108753]
[1739226181207,0.00563296,2664.6,2664.5,1.607]
[1739226181611,0.00563296,2664.6,2664.2,40.8]
[1739226181820,0.00563296,2664.6,2664.3,2.00135254]
[1739226182119,0.00563296,2664.6,2664.4,0.39453977]
[1739226182308,0.00563296,2664.6,2664.3,1.607]
[1739226182613,0.00563296,2664.6,2664.4,0.39457514]
[1739226182821,0.00563296,2664.6,2664.3,1.607]
[1739226183216,0.00563296,2664.6,2664.4,0.39481775]
[1739226183412,0.00563296,2664.6,2664.3,1.607]
[1739226183715,0.00563296,2664.6,2664.4,0.3948377]
[1739226183920,0.00563296,2664.6,2664.3,1.607]
[1739226184222,0.00563296,2664.6,2664.4,0.39499497]
[1739226184523,0.00563296,2664.6,2664.3,1.607]
[1739226184820,0.00563296,2664.6,2664.2,1.607]
[1739226186023,0.00563296,2664.6,2664.1,4.8148]
[1739226186818,0.59683296,2664.6,2664.1,4.8148]
[1739226187019,1.1476,2664.5,2664.1,3.2078]
[1739226198525,0.59683296,2664.6,2664.1,3.2078]
[1739226198729,0.59683296,2664.6,2664.4,3.2078]
[1739226198730,0.00563296,2664.6,2664.4,3.2078]
[1739226198931,0.00563296,2664.6,2664.5,3.70459228]
[1739226200036,0.5931,2665.4,2664.5,3.70459228]
[1739226200230,0.5931,2665.4,2664.9,3.2078]
[1739226200537,0.5931,2665.4,2665.0,0.562]
[1739226202533,3.21343296,2665.5,2665.1,1.607]
[1739226203036,3.21343296,2665.5,2665.1,2.2137]
[1739226203336,3.21343296,2665.5,2665.2,0.5592]
[1739226203734,0.00563296,2665.5,2665.2,3.767]
[1739226204231,0.00563296,2665.5,2665.3,0.39473895]
[1739226204435,0.00563296,2665.5,2665.2,3.767]
[1739226204632,0.00563296,2665.5,2665.3,0.39465532]
[1739226204837,0.00563296,2665.5,2665.2,3.767]
[1739226205145,0.00563296,2665.5,2665.3,0.39465047]
[1739226205437,0.00563296,2665.5,2665.2,3.767]
[1739226205635,0.00563296,2665.5,2665.3,0.39455814]
[1739226205833,0.00563296,2665.5,2665.2,3.767]
[1739226206033,0.00563296,2665.5,2665.3,0.39455319]
[1739226206234,0.00563296,2665.5,2665.2,3.767]
[1739226206538,0.00563296,2665.5,2665.3,0.39446387]
[1739226206739,0.00563296,2665.5,2665.2,3.767]
[1739226207039,0.00563296,2665.5,2665.3,0.39446828]
[1739226207339,0.00563296,2665.5,2665.2,3.767]
[1739226207540,0.00563296,2665.5,2665.3,0.39435785]
[1739226207735,0.00563296,2665.5,2665.2,3.767]
[1739226207935,0.00563296,2665.5,2665.3,0.3943639]
[1739226208141,3.2078,2666.2,2665.4,0.3943639]
[1739226208342,3.2078,2666.2,2665.6,3.2078]
[1739226208537,0.30306906,2666.4,2665.7,2.7915]
[1739226208738,3.2078,2666.5,2665.7,2.7915]
[1739226209235,0.00375528,2666.4,2665.7,2.7915]
[1739226211441,0.00375528,2666.4,2665.8,0.5748]
[1739226216941,0.00375528,2666.4,2665.9,3.2078]
[1739226221640,0.75371528,2666.4,2665.8,0.5748]
[1739226221844,0.57145528,2666.4,2665.8,0.5748]
[1739226222045,3.2078,2666.2,2665.8,0.5748]
[1739226222447,3.7626,2666.2,2665.8,0.5748]
[1739226224049,0.5773,2666.3,2665.8,0.5748]
[1739226228247,0.5773,2666.3,2665.9,0.39526106]
[1739226228448,0.5773,2666.3,2665.8,0.5748]
[1739226228752,0.5773,2666.3,2665.9,0.39525947]
[1739226228951,0.5773,2666.3,2665.8,0.5748]
[1739226229149,0.5773,2666.3,2665.9,0.39526657]
[1739226229349,0.5773,2666.3,2665.8,0.5748]
[1739226229547,0.5773,2666.3,2665.9,0.39547355]
[1739226229849,0.5773,2666.3,2665.8,0.5748]
[1739226230043,0.5773,2666.3,2665.9,0.39547159]
[1739226230244,0.5773,2666.3,2665.8,0.5748]
[1739226230552,0.5773,2666.3,2665.9,0.39558091]
[1739226230847,0.5773,2666.3,2665.8,0.5748]
[1739226231053,0.00375528,2666.4,2665.9,0.39558183]
[1739226231250,0.00375528,2666.4,2666.0,0.3957084]
[1739226231448,0.00375528,2666.4,2665.8,0.5748]
[1739226231653,0.00375528,2666.4,2665.9,0.39570474]
[1739226231856,0.00375528,2666.4,2666.0,0.39570474]
[1739226232054,0.00375528,2666.4,2665.8,0.5748]
[1739226232256,0.00375528,2666.4,2665.9,0.39585216]
[1739226232455,0.00375528,2666.4,2666.0,0.39585216]
[1739226232757,0.00375528,2666.4,2665.8,0.5748]
[1739226232958,0.00375528,2666.4,2665.9,0.39585487]
[1739226233256,0.00375528,2666.4,2666.0,0.39585487]
[1739226233556,0.00375528,2666.4,2666.1,0.39585487]
[1739226233855,0.00375528,2666.4,2666.2,1.766]
[1739226257271,0.00375528,2666.4,2666.3,0.39654741]
[1739226260969,0.00375528,2666.4,2666.3,0.39612316]
[1739226261170,0.00375528,2666.4,2666.3,2.00212316]
[1739226261375,0.00375528,2666.4,2666.3,2.00207113]
[1739226262971,0.00375528,2666.4,2666.3,2.00202631]
[1739226264976,0.00375528,2666.4,2666.3,1.606]
[1739226265177,0.00375528,2666.4,2666.3,2.00194391]
[1739226268176,3.2078,2667.1,2666.3,2.00194391]
[1739226268479,3.2078,2667.1,2666.5,3.2078]
[1739226268675,3.2078,2667.1,2666.6,1.52794391]
[1739226268875,3.2078,2667.1,2666.7,0.39594391]
[1739226269075,3.2078,2667.1,2666.6,1.132]
[1739226269274,3.2078,2667.1,2666.7,0.39558963]
[1739226269474,3.2078,2667.1,2666.6,1.13763296]
[1739226269682,3.2078,2667.1,2666.7,0.39558391]
[1739226269879,3.2078,2667.1,2666.6,1.13763296]
[1739226270080,3.2078,2667.1,2666.7,0.39558232]
[1739226270281,3.2078,2667.1,2666.6,1.13763296]
[1739226270482,3.2078,2667.1,2666.7,0.39552183]
[1739226270683,3.2078,2667.1,2666.6,1.13763296]
[1739226270881,3.2078,2667.1,2666.7,0.39552131]
[1739226271077,3.2078,2667.1,2666.6,1.13763296]
[1739226271477,3.2078,2667.1,2666.7,0.97606816]
[1739226271683,3.2078,2667.1,2666.7,0.5806]
[1739226272681,3.2078,2667.1,2666.8,0.39540104]
[1739226272892,3.2078,2667.1,2666.7,0.5806]
[1739226273080,3.2078,2667.1,2666.8,0.39540066]
[1739226273279,3.2078,2667.1,2666.9,0.39531642]
[1739226273480,3.2078,2667.1,2667.0,1.1336]
[1739226273678,1.1369,2667.5,2667.0,1.1336]
[1739226273878,1.1369,2667.5,2667.1,0.5913]
[1739226274480,1.43770676,2667.5,2667.1,0.5913]
[1739226274973,3.2078,2667.4,2667.1,0.5913]
[1739226276984,1.43770676,2667.5,2667.1,0.5913]
[1739226277184,3.2078,2667.4,2667.1,0.5913]
[1739226283989,3.2078,2667.4,2667.2,40.8]
[1739226284384,0.5863,2667.8,2667.2,40.8]
[1739226284890,0.5863,2667.8,2667.3,0.39506583]
[1739226285183,0.5863,2667.8,2667.4,1.52776583]
[1739226285390,0.5863,2667.8,2667.5,2.1985]
[1739226287392,4.3957,2668.0,2667.5,2.1985]
[1739226289482,3.2078,2668.0,2667.5,2.1985]
[1739226290590,3.7816,2668.3,2667.7,3.2078]
[1739226290788,3.7816,2668.3,2667.8,1.1123]
[1739226291094,0.5738,2668.3,2667.8,1.1123]
[1739226291289,0.5738,2668.3,2667.9,0.5867]
[1739226292891,3.2078,2668.6,2667.9,0.5867]
[1739226293092,0.5771,2668.5,2667.9,0.5867]
[1739226293292,0.5771,2668.5,2668.0,0.00562219]
[1739226293989,0.5771,2668.5,2668.1,1.605]
[1739226295188,0.5771,2668.5,2668.2,1.1311]
[1739226300300,3.50094482,2668.9,2668.2,1.1311]
[1739226300495,3.2078,2668.9,2668.3,0.96108922]
[1739226300697,0.74938,2668.5,2668.0,0.00562219]
[1739226300902,1.7493,2668.4,2668.0,0.00562219]
[1739226301297,2.49872,2668.4,2668.0,0.00562219]
[1739226301497,1.7493,2668.4,2668.0,0.57292219]
[1739226302095,1.7493,2668.4,2668.0,1.13802219]
[1739226302305,1.7493,2668.4,2668.0,1.72472219]
[1739226314009,1.7493,2668.4,2668.1,0.39523219]
[1739226314209,1.7493,2668.4,2668.0,1.72472219]
[1739226314406,1.7493,2668.4,2668.1,0.39539822]
[1739226314610,1.7493,2668.4,2668.0,1.72472219]
[1739226314810,1.7493,2668.4,2668.1,0.39539426]
[1739226315103,1.7493,2668.4,2668.0,1.72472219]
[1739226315308,1.7493,2668.4,2668.1,0.39539943]
[1739226315503,1.7493,2668.4,2668.0,1.72472219]
[1739226315703,1.7493,2668.4,2668.1,0.39538747]
[1739226316009,1.7493,2668.4,2668.0,1.72472219]
[1739226316209,1.7493,2668.4,2668.1,0.39535452]
[1739226316407,1.7493,2668.4,2668.0,1.72472219]
[1739226316408,1.7493,2668.4,2668.2,0.39535452]
[1739226316610,1.7493,2668.4,2668.0,1.72472219]
[1739226316805,1.7493,2668.4,2668.1,0.39539614]
[1739226317006,1.7493,2668.4,2668.2,0.39539614]
[1739226317207,1.7493,2668.4,2668.0,1.72472219]
[1739226317504,1.7493,2668.4,2668.1,0.3954789]
[1739226317710,1.7493,2668.4,2668.2,0.3954789]
[1739226317915,1.7493,2668.4,2668.0,1.72472219]
[1739226318106,0.5936,2668.4,2668.1,0.39547584]
[1739226318311,0.5936,2668.4,2668.2,0.39547584]
[1739226318609,0.5936,2668.4,2668.3,0.39547584]
[1739226321210,0.5936,2668.4,2668.3,0.39581663]
[1739226323217,0.5936,2668.4,2668.3,0.39578072]
[1739226326513,0.5936,2668.4,2668.0,0.57292219]
[1739226326514,0.74943,2668.3,2668.0,0.00562219]
[1739226326714,0.599,2668.2,2668.0,0.00562219]
[1739226329012,3.2078,2668.1,2668.0,0.00562219]
[1739226331011,3.2078,2668.1,2667.5,0.5907]
[1739226331207,0.6066,2668.0,2667.5,0.5907]
[1739226331509,0.5954,2667.9,2667.5,0.5907]
[1739226331814,0.5847,2667.8,2667.5,0.5907]
[1739226332517,3.2078,2667.7,2667.5,0.5907]
[1739226333014,0.6066,2667.6,2667.5,0.5907]
[1739226337320,0.6066,2667.6,2667.4,0.00562219]
[1739226337721,0.6066,2667.6,2667.4,0.60612219]
[1739226341924,3.50631929,2667.7,2667.4,0.60612219]
[1739226343017,3.2078,2667.7,2667.4,0.60612219]
[1739226347716,3.2078,2667.7,2666.8,3.2078]
[1739226347916,3.2078,2667.0,2666.9,0.5596]
[1739226348316,3.2078,2667.0,2666.5,3.2078]
[1739226348517,3.2078,2667.0,2666.6,0.6037]
[1739226350824,3.2078,2667.0,2666.6,1.1805]
[1739226351020,3.2078,2667.0,2666.6,1.7548]
[1739226358233,3.2078,2667.6,2666.6,1.7548]
[1739226358422,3.2078,2667.6,2667.1,3.2078]
[1739226358423,0.5703,2667.5,2667.1,3.2078]
[1739226358629,0.7495,2668.1,2667.1,3.2078]
[1739226358630,3.2078,2667.7,2667.2,1.184]
[1739226358927,0.5703,2667.8,2667.2,1.7912]
[1739226359629,3.2078,2667.7,2667.2,1.7912]
[1739226360824,0.5703,2667.8,2667.2,1.7912]
[1739226364542,0.5703,2667.8,2667.4,3.2078]
[1739226367838,0.0055863,2667.9,2667.4,3.2078]
[1739226368043,0.0055863,2667.9,2667.7,3.2078]
[1739226368242,0.0055863,2667.9,2667.8,1.7455]
[1739226368537,0.0055863,2667.9,2667.8,2.14073613]
[1739226368745,3.2078,2668.5,2667.8,2.14074227]
[1739226368942,3.2078,2668.5,2667.9,0.39524227]
[1739226369245,3.2078,2668.5,2667.8,1.7455]
[1739226369443,3.2078,2668.5,2667.9,0.3950017]
[1739226369642,3.2078,2668.5,2667.8,1.7455]
[1739226369842,3.21342219,2668.5,2667.9,0.40068669]
[1739226370040,3.21342219,2668.5,2667.9,0.00562219]
[1739226370451,0.00562219,2668.5,2668.1,3.2078]
[1739226370640,0.00562219,2668.5,2668.2,0.6045]
[1739226372045,0.00562219,2668.5,2668.3,0.5726]
[1739226372343,3.2078,2669.2,2668.4,3.7754]
[1739226372538,0.5996,2669.4,2668.7,3.2078]
[1739226372738,4.55094088,2669.4,2668.8,0.5659]
[1739226372933,0.5996,2669.4,2668.8,0.5659]
[1739226373645,0.56,2669.5,2668.8,0.5659]
[1739226374946,0.56,2669.5,2669.0,3.2078]
[1739226375647,0.56,2669.5,2669.1,0.5802]
[1739226376751,3.2078,2669.6,2669.1,0.5802]
[1739226380553,3.2078,2669.3,2668.8,0.5659]
[1739226380751,3.2078,2669.0,2668.8,0.5659]
[1739226381051,3.2078,2669.0,2668.6,0.5728]
[1739226381250,0.5644,2668.9,2668.6,0.5728]
[1739226386263,3.2078,2668.7,2668.2,0.5694]
[1739226386464,3.2078,2668.3,2668.2,0.5694]
[1739226386765,4.53255,2668.6,2668.0,0.5997]
[1739226387556,0.5907,2668.5,2668.0,0.5997]
[1739226388257,1.34007,2668.5,2668.0,0.5997]
[1739226388660,4.53257,2668.6,2668.0,0.5997]
[1739226388966,3.7832,2668.6,2668.0,0.5997]
[1739226389163,0.74937,2668.5,2668.0,0.5997]
[1739226389354,0.74938,2668.5,2668.0,0.5997]
[1739226389756,3.2078,2668.3,2667.9,0.00562219]
[1739226389964,0.5678,2668.2,2667.9,0.00562219]
[1739226390369,3.2078,2668.0,2667.9,0.00562219]
[1739226392870,0.74955,2667.9,2667.1,1.1033]
[1739226393064,3.2078,2667.6,2667.1,1.1033]
[1739226393264,3.2078,2667.6,2667.1,41.9033]
[1739226394067,3.21342219,2667.6,2667.1,41.90892219]
[1739226394466,0.00562219,2667.6,2667.1,41.90892219]
[1739226395764,3.21342219,2667.6,2667.1,41.90892219]
[1739226395966,1.1665,2667.5,2667.1,1.10892219]
[1739226396363,1.7424,2667.5,2667.1,1.10892219]
[1739226400174,2.49205,2667.5,2667.1,1.10892219]
[1739226400562,3.2078,2667.3,2667.1,1.10892219]
[1739226400769,1.7424,2667.5,2667.1,0.00562219]